[Event "Titled Tuesday Blitz May 03 Early 2022"]
[White "Van den Dikkenberg, Erik"]
[Black "Karavade, Eesha"]
[WhiteFideId "1005880"]
[BlackFideId "5012600"]
[WhiteElo "2118"]
[BlackElo "2258"]
[Result "1/2-1/2"]
[Round "07"]
[TimeControl "180+1"]
[Date "2022.05.03"]
[WhiteClock "0:00:03"]
[BlackClock "0:00:18"]

1. e4 {[%clk 0:03:00]}  c5 {[%clk 0:02:59]} 2. Nc3 {[%clk 0:03:00]}  d6 {[%clk 0:02:59]} 3. f4 {[%clk 0:03:01]}  Nc6 {[%clk 0:02:56]} 4. Nf3 {[%clk 0:03:02]}  g6 {[%clk 0:02:56]} 5. Bb5 {[%clk 0:03:01]}  Bd7 {[%clk 0:02:56]} 6. Bxc6 {[%clk 0:03:01]}  Bxc6 {[%clk 0:02:56]} 7. O-O {[%clk 0:03:01]}  Bg7 {[%clk 0:02:56]} 8. d3 {[%clk 0:03:01]}  Nf6 {[%clk 0:02:54]} 9. Qe1 {[%clk 0:03:01]}  Qd7 {[%clk 0:02:30]} 10. a3 {[%clk 0:02:59]}  O-O {[%clk 0:02:28]} 11. h3 {[%clk 0:02:51]}  b5 {[%clk 0:02:21]} 12. Qh4 {[%clk 0:02:51]}  b4 {[%clk 0:02:17]} 13. Ne2 {[%clk 0:02:51]}  Ba4 {[%clk 0:01:59]} 14. b3 {[%clk 0:02:49]}  Bc6 {[%clk 0:01:51]} 15. Ra2 {[%clk 0:02:45]}  bxa3 {[%clk 0:01:46]} 16. Rxa3 {[%clk 0:02:44]}  a5 {[%clk 0:01:46]} 17. f5 {[%clk 0:02:42]}  a4 {[%clk 0:01:42]} 18. Bh6 {[%clk 0:02:41]}  axb3 {[%clk 0:01:42]} 19. Rxb3 {[%clk 0:02:31]}  e6 {[%clk 0:01:35]} 20. fxg6 {[%clk 0:01:27]}  fxg6 {[%clk 0:01:34]} 21. Ng5 {[%clk 0:01:26]}  Bxh6 {[%clk 0:01:24]} 22. Qxh6 {[%clk 0:01:25]}  c4 {[%clk 0:01:20]} 23. dxc4 {[%clk 0:01:14]}  Nxe4 {[%clk 0:01:19]} 24. Rxf8+ {[%clk 0:01:11]}  Rxf8 {[%clk 0:01:18]} 25. Rf3 {[%clk 0:00:56]}  Rxf3 {[%clk 0:01:14]} 26. Nxf3 {[%clk 0:00:53]}  Qa7+ {[%clk 0:01:09]} 27. Kh2 {[%clk 0:00:52]}  Qf2 {[%clk 0:00:51]} 28. Nfd4 {[%clk 0:00:46]}  Bd7 {[%clk 0:00:41]} 29. Qf4 {[%clk 0:00:14]}  Qxf4+ {[%clk 0:00:40]} 30. Nxf4 {[%clk 0:00:14]}  e5 {[%clk 0:00:41]} 31. Nd5 {[%clk 0:00:14]}  exd4 {[%clk 0:00:39]} 32. g3 {[%clk 0:00:10]}  Kf7 {[%clk 0:00:38]} 33. Kg2 {[%clk 0:00:10]}  Ba4 {[%clk 0:00:36]} 34. Kf3 {[%clk 0:00:10]}  Nc5 {[%clk 0:00:36]} 35. Nb4 {[%clk 0:00:09]}  Ke6 {[%clk 0:00:32]} 36. Ke2 {[%clk 0:00:08]}  Ke5 {[%clk 0:00:32]} 37. Kd2 {[%clk 0:00:08]}  Ke4 {[%clk 0:00:31]} 38. g4 {[%clk 0:00:08]}  Kf3 {[%clk 0:00:30]} 39. Nd5 {[%clk 0:00:08]}  Kg3 {[%clk 0:00:29]} 40. Nf6 {[%clk 0:00:08]}  h6 {[%clk 0:00:29]} 41. Ng8 {[%clk 0:00:07]}  h5 {[%clk 0:00:29]} 42. gxh5 {[%clk 0:00:07]}  gxh5 {[%clk 0:00:29]} 43. Nf6 {[%clk 0:00:07]}  h4 {[%clk 0:00:29]} 44. Nh5+ {[%clk 0:00:06]}  Kxh3 {[%clk 0:00:28]} 45. Nf4+ {[%clk 0:00:07]}  Kg3 {[%clk 0:00:28]} 46. Nd5 {[%clk 0:00:07]}  h3 {[%clk 0:00:27]} 47. c3 {[%clk 0:00:06]}  dxc3+ {[%clk 0:00:26]} 48. Kxc3 {[%clk 0:00:06]}  h2 {[%clk 0:00:27]} 49. Ne3 {[%clk 0:00:06]}  h1=Q {[%clk 0:00:27]} 50. Kd4 {[%clk 0:00:03]}  Qe4+ {[%clk 0:00:25]} 51. Kc3 {[%clk 0:00:02]}  Qxe3+ {[%clk 0:00:25]} 52. Kb4 {[%clk 0:00:03]}  Qb3+ {[%clk 0:00:25]} 53. Ka5 {[%clk 0:00:03]}  Nb7+ {[%clk 0:00:23]} 54. Ka6 {[%clk 0:00:03]}  Bc6 {[%clk 0:00:22]} 55. Ka7 {[%clk 0:00:03]}  Nd8 {[%clk 0:00:19]} 56. Ka6 {[%clk 0:00:03]}  Qb7+ {[%clk 0:00:19]} 57. Ka5 {[%clk 0:00:03]}  Qa7+ {[%clk 0:00:19]} 58. Kb4 {[%clk 0:00:03]}  Qc5+ {[%clk 0:00:19]} 59. Kc3 {[%clk 0:00:03]}  Ne6 {[%clk 0:00:19]} 60. Kb3 {[%clk 0:00:02]}  Nd4+ {[%clk 0:00:19]} 61. Kc3 {[%clk 0:00:03]}  Ba4 {[%clk 0:00:19]} 62. Kd3 {[%clk 0:00:03]}  d5 {[%clk 0:00:19]} 63. cxd5 {[%clk 0:00:02]}  Qxd5 {[%clk 0:00:20]} 64. Kc3 {[%clk 0:00:03]}  Nc6 {[%clk 0:00:20]} 65. Kb2 {[%clk 0:00:02]}  Qd4+ {[%clk 0:00:20]} 66. Ka3 {[%clk 0:00:02]}  Qb4+ {[%clk 0:00:19]} 67. Ka2 {[%clk 0:00:02]}  Bb3+ {[%clk 0:00:19]} 68. Kb2 {[%clk 0:00:03]}  Bc4+ {[%clk 0:00:18]} 69. Kc1 {[%clk 0:00:03]}  Qc3+ {[%clk 0:00:18]} 70. Kd1 {[%clk 0:00:03]}  Nd4 {[%clk 0:00:18]} 1/2-1/2


[Site "https://www.chess.com"]

[Event "Titled Tuesday Blitz May 03 Early 2022"]
[White "Vokarev, Sergey"]
[Black "Vovk, Orest"]
[WhiteFideId "4119711"]
[BlackFideId "14113490"]
[WhiteElo "2343"]
[BlackElo "2203"]
[Result "0-1"]
[Round "07"]
[TimeControl "180+1"]
[Date "2022.05.03"]
[WhiteClock "0:00:08"]
[BlackClock "0:00:06"]

1. e4 {[%clk 0:02:52]}  g5 {[%clk 0:02:57]} 2. d4 {[%clk 0:02:50]}  h6 {[%clk 0:02:53]} 3. h4 {[%clk 0:02:49]}  g4 {[%clk 0:02:53]} 4. Nc3 {[%clk 0:02:47]}  Bg7 {[%clk 0:02:53]} 5. Be3 {[%clk 0:02:46]}  d6 {[%clk 0:02:52]} 6. h5 {[%clk 0:02:43]}  c6 {[%clk 0:02:52]} 7. Nge2 {[%clk 0:02:37]}  Qa5 {[%clk 0:02:52]} 8. Qd2 {[%clk 0:02:36]}  b5 {[%clk 0:02:52]} 9. Ng3 {[%clk 0:02:35]}  Nf6 {[%clk 0:02:44]} 10. Bd3 {[%clk 0:02:34]}  b4 {[%clk 0:02:43]} 11. Nce2 {[%clk 0:02:33]}  Ba6 {[%clk 0:02:41]} 12. a3 {[%clk 0:02:32]}  Bxd3 {[%clk 0:02:40]} 13. cxd3 {[%clk 0:02:30]}  Na6 {[%clk 0:02:07]} 14. Nf5 {[%clk 0:02:26]}  Bf8 {[%clk 0:02:02]} 15. O-O {[%clk 0:02:18]}  Qb5 {[%clk 0:01:53]} 16. axb4 {[%clk 0:02:14]}  Nxb4 {[%clk 0:01:50]} 17. Ra3 {[%clk 0:02:03]}  Nxh5 {[%clk 0:01:43]} 18. d5 {[%clk 0:01:54]}  cxd5 {[%clk 0:01:27]} 19. Nc3 {[%clk 0:01:46]}  Qd7 {[%clk 0:01:17]} 20. Re1 {[%clk 0:01:34]}  g3 {[%clk 0:01:06]} 21. f4 {[%clk 0:01:13]}  e6 {[%clk 0:01:05]} 22. Nh4 {[%clk 0:01:09]}  Be7 {[%clk 0:00:59]} 23. Nf3 {[%clk 0:01:08]}  dxe4 {[%clk 0:00:56]} 24. dxe4 {[%clk 0:01:03]}  Nf6 {[%clk 0:00:43]} 25. Bd4 {[%clk 0:00:59]}  Rg8 {[%clk 0:00:37]} 26. e5 {[%clk 0:00:48]}  Ng4 {[%clk 0:00:27]} 27. Ne4 {[%clk 0:00:43]}  dxe5 {[%clk 0:00:24]} 28. fxe5 {[%clk 0:00:32]}  Nc6 {[%clk 0:00:21]} 29. Bc3 {[%clk 0:00:28]}  Qxd2 {[%clk 0:00:20]} 30. Nfxd2 {[%clk 0:00:18]}  Bxa3 {[%clk 0:00:19]} 31. bxa3 {[%clk 0:00:17]}  Ncxe5 {[%clk 0:00:18]} 32. Nxg3 {[%clk 0:00:15]}  Nd7 {[%clk 0:00:15]} 33. Bd4 {[%clk 0:00:13]}  a6 {[%clk 0:00:14]} 34. Nge4 {[%clk 0:00:13]}  Ke7 {[%clk 0:00:12]} 35. Nc4 {[%clk 0:00:13]}  f5 {[%clk 0:00:11]} 36. Nc3 {[%clk 0:00:11]}  Rgc8 {[%clk 0:00:09]} 37. Na5 {[%clk 0:00:10]}  Kf7 {[%clk 0:00:07]} 38. Rd1 {[%clk 0:00:10]}  Ndf6 {[%clk 0:00:07]} 39. Bb6 {[%clk 0:00:08]}  Rxc3 {[%clk 0:00:06]} 0-1


[Site "https://www.chess.com"]

[Event "Titled Tuesday Blitz May 03 Early 2022"]
[White "Wong, Yinn Long"]
[Black "Cunha, Lucas Aguiar"]
[WhiteFideId "5707684"]
[BlackFideId "2125404"]
[WhiteElo "2055"]
[BlackElo "2361"]
[Result "1-0"]
[Round "07"]
[TimeControl "180+1"]
[Date "2022.05.03"]
[WhiteClock "0:00:06"]
[BlackClock "0:00:04"]

1. d4 {[%clk 0:03:00]}  Nf6 {[%clk 0:03:00]} 2. Nf3 {[%clk 0:02:56]}  c5 {[%clk 0:02:59]} 3. d5 {[%clk 0:02:45]}  b5 {[%clk 0:02:58]} 4. e4 {[%clk 0:02:38]}  Nxe4 {[%clk 0:02:57]} 5. Bd3 {[%clk 0:02:35]}  f5 {[%clk 0:02:56]} 6. O-O {[%clk 0:02:12]}  Qb6 {[%clk 0:02:41]} 7. a4 {[%clk 0:01:59]}  b4 {[%clk 0:02:28]} 8. Re1 {[%clk 0:01:47]}  Qg6 {[%clk 0:02:06]} 9. Nh4 {[%clk 0:01:35]}  Qf6 {[%clk 0:02:00]} 10. Nxf5 {[%clk 0:01:30]}  Qxf5 {[%clk 0:01:48]} 11. Bxe4 {[%clk 0:01:28]}  Qf6 {[%clk 0:01:38]} 12. Nd2 {[%clk 0:00:55]}  d6 {[%clk 0:01:16]} 13. Nf3 {[%clk 0:00:39]}  h6 {[%clk 0:01:10]} 14. Qd3 {[%clk 0:00:30]}  g5 {[%clk 0:01:08]} 15. Nd2 {[%clk 0:00:24]}  Bg7 {[%clk 0:00:59]} 16. Bg6+ {[%clk 0:00:22]}  Kd8 {[%clk 0:00:59]} 17. Nf1 {[%clk 0:00:07]}  Rf8 {[%clk 0:00:56]} 18. f3 {[%clk 0:00:08]}  Ba6 {[%clk 0:00:50]} 19. Qe4 {[%clk 0:00:08]}  Nd7 {[%clk 0:00:47]} 20. Ng3 {[%clk 0:00:07]}  Ne5 {[%clk 0:00:46]} 21. Bf5 {[%clk 0:00:06]}  b3 {[%clk 0:00:40]} 22. c3 {[%clk 0:00:04]}  Bd3 {[%clk 0:00:39]} 23. Qxd3 {[%clk 0:00:04]}  Nxd3 {[%clk 0:00:39]} 24. Bxd3 {[%clk 0:00:05]}  Qf7 {[%clk 0:00:38]} 25. Re6 {[%clk 0:00:05]}  Bf6 {[%clk 0:00:25]} 26. Bd2 {[%clk 0:00:05]}  h5 {[%clk 0:00:24]} 27. Rae1 {[%clk 0:00:05]}  h4 {[%clk 0:00:24]} 28. Ne4 {[%clk 0:00:06]}  Kc7 {[%clk 0:00:17]} 29. Nxf6 {[%clk 0:00:05]}  exf6 {[%clk 0:00:15]} 30. Re7+ {[%clk 0:00:06]}  Kb6 {[%clk 0:00:13]} 31. Rxf7 {[%clk 0:00:06]}  Rxf7 {[%clk 0:00:14]} 32. Re6 {[%clk 0:00:06]}  Rd8 {[%clk 0:00:15]} 33. Bg6 {[%clk 0:00:05]}  Rff8 {[%clk 0:00:13]} 34. c4 {[%clk 0:00:05]}  Rd7 {[%clk 0:00:12]} 35. Bc3 {[%clk 0:00:04]}  f5 {[%clk 0:00:11]} 36. Kf2 {[%clk 0:00:03]}  g4 {[%clk 0:00:11]} 37. h3 {[%clk 0:00:02]}  g3+ {[%clk 0:00:11]} 38. Ke2 {[%clk 0:00:03]}  f4 {[%clk 0:00:10]} 39. Re4 {[%clk 0:00:03]}  a5 {[%clk 0:00:09]} 40. Bh5 {[%clk 0:00:04]}  Kc7 {[%clk 0:00:08]} 41. Re6 {[%clk 0:00:04]}  Kd8 {[%clk 0:00:07]} 42. Kd3 {[%clk 0:00:03]}  Kc7 {[%clk 0:00:07]} 43. Bxa5+ {[%clk 0:00:04]}  Kb7 {[%clk 0:00:07]} 44. Bc3 {[%clk 0:00:05]}  Kb6 {[%clk 0:00:07]} 45. a5+ {[%clk 0:00:05]}  Kc7 {[%clk 0:00:07]} 46. Bg4 {[%clk 0:00:06]}  Kd8 {[%clk 0:00:06]} 47. Rh6 {[%clk 0:00:06]}  Re7 {[%clk 0:00:05]} 48. Rxd6+ {[%clk 0:00:06]}  Kc7 {[%clk 0:00:06]} 49. Rc6+ {[%clk 0:00:06]}  Kb8 {[%clk 0:00:06]} 50. Rb6+ {[%clk 0:00:05]}  Ka7 {[%clk 0:00:06]} 51. Re6 {[%clk 0:00:06]}  Rc7 {[%clk 0:00:04]} 52. Be5 {[%clk 0:00:06]}  Rb7 {[%clk 0:00:04]} 53. Rc6 {[%clk 0:00:06]}  Rb4 {[%clk 0:00:04]} 54. Bd6 {[%clk 0:00:06]} 1-0


[Site "https://www.chess.com"]

[Event "Titled Tuesday Blitz May 03 Early 2022"]
[White "Yurovskykh, Oleksandr"]
[Black "Vusatiuk, Vladimir"]
[WhiteFideId "14134020"]
[BlackFideId "14118610"]
[WhiteElo "2292"]
[BlackElo "2157"]
[Result "1-0"]
[Round "07"]
[TimeControl "180+1"]
[Date "2022.05.03"]
[WhiteClock "0:01:01"]
[BlackClock "0:00:12"]

1. d4 {[%clk 0:02:54]}  Nf6 {[%clk 0:03:00]} 2. Nf3 {[%clk 0:02:53]}  e6 {[%clk 0:02:59]} 3. Bg5 {[%clk 0:02:51]}  h6 {[%clk 0:02:58]} 4. Bh4 {[%clk 0:02:50]}  d5 {[%clk 0:02:58]} 5. e3 {[%clk 0:02:50]}  Be7 {[%clk 0:02:55]} 6. Nbd2 {[%clk 0:02:50]}  O-O {[%clk 0:02:55]} 7. Bd3 {[%clk 0:02:50]}  c5 {[%clk 0:02:55]} 8. c3 {[%clk 0:02:50]}  Nc6 {[%clk 0:02:56]} 9. O-O {[%clk 0:02:50]}  b6 {[%clk 0:02:51]} 10. Qe2 {[%clk 0:02:49]}  Bb7 {[%clk 0:02:50]} 11. Ne5 {[%clk 0:02:44]}  Nxe5 {[%clk 0:02:45]} 12. dxe5 {[%clk 0:02:45]}  Nd7 {[%clk 0:02:45]} 13. Bxe7 {[%clk 0:02:45]}  Qxe7 {[%clk 0:02:46]} 14. f4 {[%clk 0:02:45]}  f6 {[%clk 0:02:35]} 15. exf6 {[%clk 0:02:45]}  Rxf6 {[%clk 0:02:35]} 16. e4 {[%clk 0:02:45]}  Raf8 {[%clk 0:02:25]} 17. g3 {[%clk 0:02:43]}  e5 {[%clk 0:02:17]} 18. exd5 {[%clk 0:02:41]}  Bxd5 {[%clk 0:02:18]} 19. Bc4 {[%clk 0:02:40]}  Qe6 {[%clk 0:01:34]} 20. Rae1 {[%clk 0:02:37]}  Re8 {[%clk 0:01:12]} 21. Bxd5 {[%clk 0:02:26]}  Qxd5 {[%clk 0:01:12]} 22. Qc4 {[%clk 0:02:26]}  Qxc4 {[%clk 0:01:09]} 23. Nxc4 {[%clk 0:02:27]}  Rfe6 {[%clk 0:01:08]} 24. Rd1 {[%clk 0:02:26]}  R8e7 {[%clk 0:01:02]} 25. f5 {[%clk 0:02:26]}  Rf6 {[%clk 0:01:01]} 26. g4 {[%clk 0:02:19]}  e4 {[%clk 0:01:00]} 27. Rfe1 {[%clk 0:02:19]}  h5 {[%clk 0:00:59]} 28. h3 {[%clk 0:02:19]}  hxg4 {[%clk 0:00:59]} 29. hxg4 {[%clk 0:02:20]}  g6 {[%clk 0:01:00]} 30. Ne3 {[%clk 0:02:17]}  Ne5 {[%clk 0:00:56]} 31. Rd8+ {[%clk 0:02:02]}  Kg7 {[%clk 0:00:56]} 32. Red1 {[%clk 0:02:00]}  Nd3 {[%clk 0:00:41]} 33. Nd5 {[%clk 0:01:42]}  Re5 {[%clk 0:00:18]} 34. Nxf6 {[%clk 0:01:34]}  Kxf6 {[%clk 0:00:19]} 35. Rd6+ {[%clk 0:01:29]}  Kg5 {[%clk 0:00:19]} 36. Rxg6+ {[%clk 0:01:29]}  Kf4 {[%clk 0:00:20]} 37. Re6 {[%clk 0:01:21]}  Kxg4 {[%clk 0:00:16]} 38. Rxd3 {[%clk 0:01:03]}  Rxe6 {[%clk 0:00:13]} 39. fxe6 {[%clk 0:01:03]}  exd3 {[%clk 0:00:13]} 40. Kf2 {[%clk 0:01:01]}  d2 {[%clk 0:00:10]} 41. Ke2 {[%clk 0:01:01]}  Kf5 {[%clk 0:00:11]} 42. e7 {[%clk 0:01:01]}  d1=Q+ {[%clk 0:00:12]} 43. Kxd1 {[%clk 0:01:01]} 1-0


[Site "https://www.chess.com"]

[Event "Titled Tuesday Blitz May 03 Early 2022"]
[White "Zainullina, Nataliya"]
[Black "Kanyamarala, Trisha"]
[WhiteFideId "4145488"]
[BlackFideId "45004722"]
[WhiteElo "2078"]
[BlackElo "2079"]
[Result "0-1"]
[Round "07"]
[TimeControl "180+1"]
[Date "2022.05.03"]
[WhiteClock "0:01:00"]
[BlackClock "0:00:28"]

1. Nf3 {[%clk 0:02:59]}  d5 {[%clk 0:02:59]} 2. g3 {[%clk 0:02:58]}  e6 {[%clk 0:02:59]} 3. Bg2 {[%clk 0:02:59]}  b5 {[%clk 0:02:59]} 4. O-O {[%clk 0:02:59]}  Nf6 {[%clk 0:02:58]} 5. d4 {[%clk 0:02:58]}  c5 {[%clk 0:02:55]} 6. b3 {[%clk 0:02:58]}  Nbd7 {[%clk 0:02:54]} 7. Nbd2 {[%clk 0:02:55]}  Bb7 {[%clk 0:02:53]} 8. c4 {[%clk 0:02:53]}  a6 {[%clk 0:02:47]} 9. Bb2 {[%clk 0:02:51]}  bxc4 {[%clk 0:02:45]} 10. bxc4 {[%clk 0:02:51]}  cxd4 {[%clk 0:02:45]} 11. Nxd4 {[%clk 0:02:50]}  Be7 {[%clk 0:02:45]} 12. Qb3 {[%clk 0:02:49]}  Rb8 {[%clk 0:02:44]} 13. Ba3 {[%clk 0:02:47]}  O-O {[%clk 0:02:39]} 14. Bxe7 {[%clk 0:02:46]}  Qxe7 {[%clk 0:02:38]} 15. Qa4 {[%clk 0:02:42]}  Nb6 {[%clk 0:02:26]} 16. Qb3 {[%clk 0:02:35]}  Ba8 {[%clk 0:02:18]} 17. Qd3 {[%clk 0:02:24]}  dxc4 {[%clk 0:02:08]} 18. Nxc4 {[%clk 0:02:25]}  Nxc4 {[%clk 0:02:08]} 19. Qxc4 {[%clk 0:02:24]}  Bxg2 {[%clk 0:02:06]} 20. Kxg2 {[%clk 0:02:24]}  Rb4 {[%clk 0:02:06]} 21. Qc3 {[%clk 0:02:16]}  Nd5 {[%clk 0:02:01]} 22. Qd3 {[%clk 0:02:13]}  Rd8 {[%clk 0:01:55]} 23. Nc6 {[%clk 0:02:08]}  Qb7 {[%clk 0:01:44]} 24. Qc2 {[%clk 0:01:24]}  Rb6 {[%clk 0:01:19]} 25. Rac1 {[%clk 0:01:14]}  Nb4 {[%clk 0:01:07]} 26. Rfd1 {[%clk 0:01:05]}  Rxd1 {[%clk 0:00:59]} 27. Rxd1 {[%clk 0:01:01]}  Qxc6+ {[%clk 0:00:36]} 28. Kf1 {[%clk 0:01:00]}  Qh1# {[%clk 0:00:28]} 0-1


[Site "https://www.chess.com"]

[Event "Titled Tuesday Blitz May 03 Early 2022"]
[White "Antonio, Jorge Carlos"]
[Black "Araujo Filho, Luiz Antonio Coel"]
[WhiteFideId "113190"]
[BlackFideId "2130661"]
[WhiteElo "2247"]
[BlackElo "2299"]
[Result "1/2-1/2"]
[Round "08"]
[TimeControl "180+1"]
[Date "2022.05.03"]
[WhiteClock "0:00:01"]
[BlackClock "0:00:05"]

1. e4 {[%clk 0:03:00]}  c6 {[%clk 0:02:59]} 2. d4 {[%clk 0:03:00]}  d5 {[%clk 0:02:59]} 3. exd5 {[%clk 0:02:59]}  cxd5 {[%clk 0:02:59]} 4. c4 {[%clk 0:02:55]}  Nf6 {[%clk 0:02:59]} 5. Nc3 {[%clk 0:02:56]}  Nc6 {[%clk 0:02:59]} 6. Nf3 {[%clk 0:02:53]}  e6 {[%clk 0:02:59]} 7. Bg5 {[%clk 0:02:51]}  Be7 {[%clk 0:02:59]} 8. c5 {[%clk 0:02:46]}  Ne4 {[%clk 0:02:54]} 9. Bxe7 {[%clk 0:02:43]}  Qxe7 {[%clk 0:02:54]} 10. Bb5 {[%clk 0:02:39]}  Nxc3 {[%clk 0:02:52]} 11. bxc3 {[%clk 0:02:36]}  O-O {[%clk 0:02:52]} 12. Bxc6 {[%clk 0:02:31]}  bxc6 {[%clk 0:02:47]} 13. O-O {[%clk 0:02:32]}  f6 {[%clk 0:02:11]} 14. Re1 {[%clk 0:02:30]}  Qc7 {[%clk 0:02:07]} 15. Qe2 {[%clk 0:02:22]}  a5 {[%clk 0:01:59]} 16. Rab1 {[%clk 0:02:18]}  Re8 {[%clk 0:01:52]} 17. Qb2 {[%clk 0:02:09]}  e5 {[%clk 0:01:22]} 18. Qb6 {[%clk 0:02:04]}  Qxb6 {[%clk 0:00:57]} 19. Rxb6 {[%clk 0:02:01]}  e4 {[%clk 0:00:54]} 20. Nd2 {[%clk 0:01:58]}  Bd7 {[%clk 0:00:50]} 21. g3 {[%clk 0:01:51]}  Rac8 {[%clk 0:00:46]} 22. h4 {[%clk 0:01:45]}  Kf7 {[%clk 0:00:44]} 23. Nf1 {[%clk 0:01:39]}  f5 {[%clk 0:00:36]} 24. Ne3 {[%clk 0:01:38]}  Rb8 {[%clk 0:00:34]} 25. Reb1 {[%clk 0:01:36]}  Rxb6 {[%clk 0:00:34]} 26. Rxb6 {[%clk 0:01:33]}  h6 {[%clk 0:00:32]} 27. Kf1 {[%clk 0:01:30]}  g5 {[%clk 0:00:32]} 28. hxg5 {[%clk 0:01:20]}  hxg5 {[%clk 0:00:33]} 29. Rb7 {[%clk 0:01:18]}  Re7 {[%clk 0:00:32]} 30. Ng2 {[%clk 0:01:14]}  Kf6 {[%clk 0:00:30]} 31. Ke2 {[%clk 0:01:14]}  f4 {[%clk 0:00:29]} 32. Kd2 {[%clk 0:01:10]}  e3+ {[%clk 0:00:26]} 33. Nxe3 {[%clk 0:00:49]}  fxe3+ {[%clk 0:00:25]} 34. fxe3 {[%clk 0:00:50]}  Be8 {[%clk 0:00:22]} 35. Rb8 {[%clk 0:00:41]}  Kf5 {[%clk 0:00:20]} 36. Kd3 {[%clk 0:00:39]}  Kg4 {[%clk 0:00:20]} 37. c4 {[%clk 0:00:33]}  dxc4+ {[%clk 0:00:19]} 38. Kxc4 {[%clk 0:00:32]}  Kxg3 {[%clk 0:00:19]} 39. Kd3 {[%clk 0:00:23]}  Kf3 {[%clk 0:00:16]} 40. Ra8 {[%clk 0:00:15]}  Rxe3+ {[%clk 0:00:15]} 41. Kc4 {[%clk 0:00:15]}  Ra3 {[%clk 0:00:13]} 42. Rxe8 {[%clk 0:00:14]}  Rxa2 {[%clk 0:00:13]} 43. d5 {[%clk 0:00:13]}  cxd5+ {[%clk 0:00:12]} 44. Kxd5 {[%clk 0:00:13]}  g4 {[%clk 0:00:13]} 45. c6 {[%clk 0:00:13]}  Rc2 {[%clk 0:00:11]} 46. Rf8+ {[%clk 0:00:11]}  Ke3 {[%clk 0:00:10]} 47. Rg8 {[%clk 0:00:10]}  Kf3 {[%clk 0:00:10]} 48. Rf8+ {[%clk 0:00:09]}  Kg2 {[%clk 0:00:09]} 49. Kd6 {[%clk 0:00:07]}  g3 {[%clk 0:00:09]} 50. c7 {[%clk 0:00:07]}  a4 {[%clk 0:00:07]} 51. Rf5 {[%clk 0:00:06]}  Rxc7 {[%clk 0:00:05]} 52. Kxc7 {[%clk 0:00:06]}  Kh1 {[%clk 0:00:04]} 53. Ra5 {[%clk 0:00:07]}  g2 {[%clk 0:00:04]} 54. Rh5+ {[%clk 0:00:05]}  Kg1 {[%clk 0:00:03]} 55. Ra5 {[%clk 0:00:06]}  Kf1 {[%clk 0:00:03]} 56. Rf5+ {[%clk 0:00:05]}  Ke2 {[%clk 0:00:03]} 57. Rg5 {[%clk 0:00:04]}  Kf2 {[%clk 0:00:04]} 58. Rf5+ {[%clk 0:00:04]}  Ke3 {[%clk 0:00:04]} 59. Rg5 {[%clk 0:00:04]}  Kf3 {[%clk 0:00:05]} 60. Rf5+ {[%clk 0:00:04]}  Kg4 {[%clk 0:00:05]} 61. Rf8 {[%clk 0:00:03]}  Kg3 {[%clk 0:00:04]} 62. Rg8+ {[%clk 0:00:03]}  Kf3 {[%clk 0:00:05]} 63. Kb6 {[%clk 0:00:02]}  Kf2 {[%clk 0:00:04]} 64. Kb5 {[%clk 0:00:02]}  g1=Q {[%clk 0:00:04]} 65. Rxg1 {[%clk 0:00:01]}  Kxg1 {[%clk 0:00:05]} 66. Kxa4 {[%clk 0:00:01]} 1/2-1/2


[Site "https://www.chess.com"]

[Event "Titled Tuesday Blitz May 03 Early 2022"]
[White "Bach, Ngoc Thuy Duong"]
[Black "Vokarev, Sergey"]
[WhiteFideId "12408956"]
[BlackFideId "4119711"]
[WhiteElo "1862"]
[BlackElo "2343"]
[Result "0-1"]
[Round "08"]
[TimeControl "180+1"]
[Date "2022.05.03"]
[WhiteClock "0:00:04"]
[BlackClock "0:00:21"]

1. d4 {[%clk 0:03:00]}  d5 {[%clk 0:02:59]} 2. c4 {[%clk 0:03:01]}  dxc4 {[%clk 0:02:59]} 3. e3 {[%clk 0:02:57]}  e5 {[%clk 0:02:58]} 4. d5 {[%clk 0:02:54]}  c6 {[%clk 0:02:51]} 5. Bxc4 {[%clk 0:02:49]}  Nf6 {[%clk 0:02:50]} 6. Nc3 {[%clk 0:02:13]}  Bb4 {[%clk 0:02:48]} 7. Bd2 {[%clk 0:01:51]}  O-O {[%clk 0:02:35]} 8. dxc6 {[%clk 0:01:41]}  Nxc6 {[%clk 0:02:34]} 9. Nge2 {[%clk 0:01:34]}  e4 {[%clk 0:02:34]} 10. Qc2 {[%clk 0:01:30]}  Ne5 {[%clk 0:02:29]} 11. Nxe4 {[%clk 0:01:14]}  Bxd2+ {[%clk 0:02:29]} 12. Nxd2 {[%clk 0:01:14]}  Bg4 {[%clk 0:02:16]} 13. f3 {[%clk 0:01:09]}  Rc8 {[%clk 0:02:16]} 14. Qb3 {[%clk 0:01:01]}  Nxc4 {[%clk 0:02:10]} 15. Nxc4 {[%clk 0:00:58]}  Be6 {[%clk 0:02:09]} 16. Rc1 {[%clk 0:00:51]}  Qc7 {[%clk 0:02:01]} 17. Qb4 {[%clk 0:00:37]}  a5 {[%clk 0:01:51]} 18. Qxa5 {[%clk 0:00:29]}  Bxc4 {[%clk 0:01:15]} 19. Qxc7 {[%clk 0:00:28]}  Rxc7 {[%clk 0:01:15]} 20. b3 {[%clk 0:00:28]}  Ra8 {[%clk 0:01:12]} 21. Rc2 {[%clk 0:00:14]}  Nd5 {[%clk 0:01:03]} 22. Rxc4 {[%clk 0:00:13]}  Rxc4 {[%clk 0:01:01]} 23. bxc4 {[%clk 0:00:14]}  Nxe3 {[%clk 0:01:01]} 24. Kf2 {[%clk 0:00:14]}  Nxc4 {[%clk 0:01:00]} 25. Rc1 {[%clk 0:00:15]}  Ne5 {[%clk 0:00:55]} 26. Rc7 {[%clk 0:00:14]}  g6 {[%clk 0:00:51]} 27. Rxb7 {[%clk 0:00:14]}  Rxa2 {[%clk 0:00:51]} 28. h3 {[%clk 0:00:12]}  h5 {[%clk 0:00:45]} 29. Ke3 {[%clk 0:00:11]}  Nc4+ {[%clk 0:00:45]} 30. Kf2 {[%clk 0:00:11]}  h4 {[%clk 0:00:43]} 31. Rb4 {[%clk 0:00:10]}  Rc2 {[%clk 0:00:42]} 32. Ke1 {[%clk 0:00:09]}  Ne3 {[%clk 0:00:40]} 33. Kf2 {[%clk 0:00:09]}  Nf5 {[%clk 0:00:39]} 34. Re4 {[%clk 0:00:06]}  Kg7 {[%clk 0:00:35]} 35. Ke1 {[%clk 0:00:06]}  g5 {[%clk 0:00:29]} 36. Kd1 {[%clk 0:00:06]}  Ra2 {[%clk 0:00:28]} 37. Ke1 {[%clk 0:00:06]}  Kg6 {[%clk 0:00:27]} 38. Re5 {[%clk 0:00:05]}  f6 {[%clk 0:00:26]} 39. Re4 {[%clk 0:00:04]}  Nd6 {[%clk 0:00:24]} 40. Re6 {[%clk 0:00:04]}  Nc4 {[%clk 0:00:22]} 41. Re4 {[%clk 0:00:04]}  Ne5 {[%clk 0:00:22]} 42. f4 {[%clk 0:00:04]}  Nd3+ {[%clk 0:00:22]} 43. Kf1 {[%clk 0:00:04]}  Ra1+ {[%clk 0:00:22]} 44. Nc1 {[%clk 0:00:03]}  Rxc1+ {[%clk 0:00:22]} 45. Ke2 {[%clk 0:00:03]}  Nxf4+ {[%clk 0:00:22]} 46. Kf3 {[%clk 0:00:04]}  Rc3+ {[%clk 0:00:21]} 47. Kf2 {[%clk 0:00:03]}  Rc2+ {[%clk 0:00:21]} 48. Kf3 {[%clk 0:00:04]}  Nxg2 {[%clk 0:00:21]} 0-1


[Site "https://www.chess.com"]